bitfinex/quotes_SOLUSD_20250901
["timestamp","ask_amount","ask_price","bid_price","bid_amount"]
[1756749997802,5.01429072,199.43,199.41,13.59559401]
[1756749998133,5.01429072,199.43,199.42,52.77559401]
[1756749999618,5.01429072,199.43,199.42,53.01559401]
[1756750002491,5.01429072,199.43,199.42,53.72559401]
[1756750002718,5.01429072,199.43,199.42,53.01559401]
[1756750002895,5.01378791,199.45,199.42,53.72559401]
[1756750003532,5.01378791,199.45,199.42,53.01559401]
[1756750004309,5.01378791,199.45,199.42,53.72559401]
[1756750004612,5.01378791,199.45,199.42,53.01559401]
[1756750005335,5.01378791,199.45,199.42,53.72559401]
[1756750006033,5.01378791,199.45,199.43,14.30559401]
[1756750006231,5.01378791,199.45,199.44,53.68559401]
[1756750006417,5.01378791,199.45,199.44,53.66559401]
[1756750007343,5.01378791,199.45,199.44,52.95559401]
[1756750007708,5.01378791,199.45,199.43,13.59559401]
[1756750007931,5.01378791,199.45,199.44,52.95559401]
[1756750008116,5.01353654,199.46,199.44,52.95559401]
[1756750008638,17.54737791,199.46,199.36,4.2494774]
[1756750008834,17.54737791,199.46,199.4,13.59559401]
[1756750008835,0.66,199.45,199.4,13.59559401]
[1756750009032,0.66,199.45,199.4,14.30559401]
[1756750009214,0.66,199.45,199.42,13.59559401]
[1756750009418,0.66,199.44,199.34,0.12]
[1756750009733,0.66,199.44,199.39,13.59559401]
[1756750009947,26.66,199.43,199.39,13.59559401]
[1756750010147,5.01479364,199.41,199.39,13.59559401]
[1756750010318,5.01479364,199.41,199.4,39.32]
[1756750010714,5.67479364,199.41,199.4,39.32]
[1756750010913,5.01479364,199.41,199.4,39.32]
[1756750012418,5.01454217,199.42,199.4,39.32]
[1756750012626,5.67454217,199.42,199.4,39.32]
[1756750017156,5.01454217,199.42,199.4,39.32]
[1756750017319,5.01454217,199.42,199.4,40.03]
[1756750017651,5.01454217,199.42,199.4,39.32]
[1756750018148,5.01454217,199.42,199.41,0.71]
[1756750018337,5.01378791,199.45,199.42,13.59559401]
[1756750018643,5.01378791,199.45,199.43,39.99]
[1756750019146,17.54771423,199.46,199.44,13.59559401]
[1756750019347,5.01353654,199.46,199.45,39.32]
[1756750019851,5.01353654,199.46,199.45,0.71]
[1756750020032,5.01353654,199.46,199.45,53.60559401]
[1756750020433,5.01335116,199.47,199.46,13.59559401]
[1756750020627,31.70306016,199.48,199.46,52.89559401]
[1756750021134,31.70306016,199.48,199.46,39.3]
[1756750021347,0.66,199.47,199.42,13.59559401]
[1756750021533,0.66,199.47,199.42,0.71]
[1756750021735,0.66,199.46,199.43,39.28]
[1756750021951,43.57564488,199.48,199.44,34.76]
[1756750022136,0.66,199.47,199.44,34.76]
[1756750022834,43.57564488,199.48,199.45,0.71]
[1756750022835,31.04306016,199.48,199.45,0.71]
[1756750023029,31.04306016,199.48,199.46,0.71]
[1756750023251,31.70306016,199.48,199.47,39.26]
[1756750023554,31.04306016,199.48,199.47,39.26]
[1756750023754,31.70306016,199.48,199.47,39.26]
[1756750025846,31.73306016,199.48,199.47,39.26]
[1756750026041,31.73306016,199.48,199.43,0.68]
[1756750026245,0.69,199.47,199.44,23.7]
[1756750027160,43.57564488,199.48,199.44,23.7]
[1756750027459,43.57564488,199.48,199.45,0.68]
[1756750027854,43.57564488,199.48,199.44,23.7]
[1756750028039,43.57564488,199.48,199.45,0.68]
[1756750028236,31.04306016,199.48,199.46,0.68]
[1756750028439,31.04306016,199.48,199.47,0.68]
[1756750028759,31.73306016,199.48,199.45,13.59559401]
[1756750029062,0.69,199.47,199.45,13.59559401]
[1756750029267,31.04306016,199.48,199.45,13.59559401]
[1756750029558,31.04306016,199.48,199.45,14.27559401]
[1756750030138,31.73306016,199.48,199.45,13.59559401]
[1756750031166,31.04306016,199.48,199.45,13.59559401]
[1756750031765,31.04306016,199.48,199.43,0.68]
[1756750031766,43.57564488,199.48,199.43,0.68]
[1756750031955,0.69,199.47,199.44,39.22]
[1756750032357,0.03,199.48,199.45,0.68]
[1756750032660,0.03,199.5,199.47,0.14216157]
[1756750032857,0.03,199.5,199.49,13.59559401]
[1756750033042,0.03,199.5,199.49,54.33559401]
[1756750033631,0.03,199.5,199.49,54.47775558]
[1756750033835,0.03,199.5,199.49,58.20145445]
[1756750034256,0.03,199.5,199.49,58.7027327]
[1756750034661,0.03,199.5,199.49,58.21796697]
[1756750035368,0.03,199.5,199.49,58.21586483]
[1756750035742,0.03,199.5,199.49,67.47812482]
[1756750036642,0.03,199.5,199.49,63.22864742]
[1756750037254,0.03,199.5,199.49,23.14864742]
[1756750037576,0.03,199.5,199.49,58.17586483]
[1756750037752,0.03,199.5,199.49,138.47586483]
[1756750038559,0.03,199.5,199.49,98.43586483]
[1756750038758,0.03,199.5,199.49,138.49586483]
[1756750039276,0.03,199.5,199.49,53.65559401]
[1756750039466,0.03,199.5,199.49,54.33559401]
[1756750039776,0.03,199.5,199.49,58.04694313]
[1756750039948,0.03,199.5,199.49,13.59559401]
[1756750040149,0.72,199.5,199.49,13.59559401]
[1756750040366,0.03,199.5,199.49,53.75559401]
[1756750040751,0.03,199.5,199.49,13.59559401]
[1756750041050,0.03,199.5,199.49,53.75559401]
[1756750041249,0.03,199.5,199.49,54.43559401]
[1756750041450,0.03,199.5,199.49,53.75559401]
[1756750042878,26.03,199.5,199.49,53.75559401]
[1756750044961,0.03,199.5,199.49,54.43559401]
[1756750045167,0.03,199.5,199.49,53.75559401]
[1756750045888,0.03,199.5,199.49,53.89775558]
[1756750046056,0.03,199.5,199.49,54.57775558]
[1756750046582,0.03,199.5,199.49,59.59053817]
[1756750046776,0.03,199.5,199.49,63.84001557]
[1756750046973,0.03,199.5,199.49,67.55272797]
[1756750047175,0.03,199.5,199.49,58.21046798]
[1756750047764,0.03,199.5,199.49,18.13046798]
[1756750047985,0.03,199.5,199.49,54.49775558]
[1756750048294,0.03,199.5,199.49,63.72387923]
[1756750048491,0.03,199.5,199.49,27.39207838]
[1756750048790,0.03,199.5,199.49,67.45207838]
[1756750049087,0.03,199.5,199.49,18.12981839]
[1756750049298,0.03,199.5,199.49,54.35559401]
[1756750049864,0.03,199.5,199.49,54.49775558]
[1756750051077,0.03,199.5,199.49,59.51053817]
[1756750051777,0.03,199.5,199.49,67.46977129]
[1756750052282,0.03,199.5,199.49,147.76977129]
[1756750052589,0.03,199.5,199.49,143.52029389]
[1756750052905,0.03,199.5,199.49,162.84977129]
[1756750053989,0.03,199.52,199.51,28.81775558]
[1756750054183,0.03,199.52,199.51,183.1169887]
[1756750054506,0.03,199.52,199.51,183.79096661]
[1756750054976,0.03,199.52,199.51,188.80324669]
[1756750055904,0.03,199.52,199.51,184.55376929]
[1756750056074,0.03,199.52,199.51,188.80324669]
[1756750058297,0.03,199.52,199.51,184.53590129]
[1756750058495,0.03,199.52,199.51,188.78537869]
[1756750058899,0.03,199.52,199.51,17.29932764]
[1756750059102,0.03,199.52,199.51,57.33932764]
[1756750059282,0.03,199.52,199.51,58.05932764]
[1756750059480,0.03,199.52,199.51,58.20148921]
[1756750059881,0.03,199.52,199.51,58.05932764]
[1756750060187,0.03,199.52,199.51,18.01932764]
[1756750060396,0.03,199.52,199.51,58.07932764]
[1756750060718,0.03,199.52,199.51,58.22148921]
[1756750060999,0.03,199.52,199.51,57.50148921]
[1756750061582,0.03,199.52,199.51,63.23376929]
[1756750062202,0.03,199.52,199.51,58.22148921]
[1756750062399,0.03,199.52,199.51,67.98447469]
[1756750062800,0.03,199.52,199.51,63.73499729]
[1756750062987,0.03,199.52,199.51,67.98447469]
[1756750063404,0.03,199.52,199.51,63.73499729]
[1756750063703,0.03,199.52,199.51,67.98447469]
[1756750063998,0.03,199.52,199.51,148.28447469]
[1756750064180,0.03,199.52,199.51,147.78324669]
[1756750064381,0.03,199.52,199.51,143.53376929]
[1756750064580,0.03,199.52,199.51,162.86324669]
[1756750064810,0.03,199.52,199.51,158.6127887]
[1756750065108,0.03,199.52,199.51,162.8622661]
[1756750065302,0.03,199.52,199.51,158.6127887]
[1756750065606,0.03,199.52,199.51,162.86194644]
[1756750065796,0.03,199.52,199.51,147.72194644]
[1756750065993,0.03,199.52,199.51,103.47246904]
[1756750066199,0.03,199.52,199.51,147.72194644]
[1756750067004,0.03,199.52,199.51,147.00194644]
[1756750067214,0.03,199.52,199.51,147.72194644]
[1756750067925,0.03,199.52,199.51,101.98966636]
[1756750068101,0.03,199.52,199.51,137.72018896]
[1756750068295,0.03,199.52,199.51,137.72031547]
[1756750068890,0.03,199.52,199.51,97.74031547]
[1756750069090,0.03,199.52,199.51,137.70031547]
[1756750069491,0.03,199.52,199.51,57.2581539]
[1756750069792,0.03,199.52,199.51,57.40031547]
[1756750070316,0.03,199.52,199.51,137.70031547]
[1756750070515,0.03,199.52,199.51,97.74031547]
[1756750070693,0.03,199.52,199.51,137.70031547]
[1756750071217,0.03,199.52,199.51,143.43259555]
[1756750071520,0.03,199.52,199.51,142.71259555]
[1756750071814,0.03,199.52,199.51,142.71355795]
[1756750072024,0.03,199.52,199.51,143.43355795]
[1756750072512,0.03,199.52,199.51,67.38303535]
[1756750073196,0.03,199.52,199.51,22.45355795]
[1756750073403,0.03,199.52,199.51,57.36127787]
[1756750073798,0.03,199.52,199.51,17.44127787]
[1756750074101,0.03,199.52,199.51,57.34127787]
[1756750074988,0.03,199.52,199.51,13.73775558]
[1756750075319,0.03,199.52,199.51,57.34427577]
[1756750076533,0.68,199.52,199.51,3.70652019]
[1756750076700,26.0,199.51,199.48,0.12]
[1756750077020,43.54385964,199.5,199.46,0.12]
[1756750077226,43.54385964,199.5,199.47,18.52]
[1756750077401,43.54385964,199.5,199.46,0.12]
[1756750077716,43.54385964,199.5,199.47,39.88]
[1756750078907,43.54385964,199.5,199.46,0.12]
[1756750079095,43.54385964,199.5,199.47,39.86]
[1756750080321,43.54385964,199.5,199.47,39.98]
[1756750081401,43.54385964,199.5,199.48,39.84]
[1756750081603,58.62037264,199.5,199.48,39.84]
[1756750082727,46.08904432,199.5,199.48,39.84]
[1756750082937,46.08904432,199.5,199.47,0.12]
[1756750083119,20.08904432,199.5,199.49,39.84]
[1756750083422,31.01253132,199.5,199.49,39.84]
[1756750085113,5.01253132,199.5,199.49,39.84]
[1756750085518,5.01253132,199.5,199.49,14.68479904]
[1756750086510,31.01253132,199.5,199.47,0.12]
[1756750086813,31.01278259,199.49,199.47,0.12]
[1756750087226,2.010303,199.48,199.47,0.12]
[1756750087609,2.010303,199.48,199.47,1e-08]
[1756750087935,2.010303,199.48,199.45,1e-08]
[1756750088103,2.010303,199.48,199.43,39.92]
[1756750088831,26.0,199.44,199.43,39.92]
[1756750089431,26.0,199.44,199.43,40.63]
[1756750089821,26.0,199.44,199.43,39.92]
[1756750090729,31.01403931,199.44,199.43,39.92]
[1756750090911,31.01403931,199.44,199.43,54.22559401]
[1756750091917,31.01403931,199.44,199.43,0.12]
[1756750093208,31.01403931,199.44,199.43,1e-08]
[1756750093812,43.54913758,199.44,199.37,39.74]
[1756750094829,68.61933413,199.44,199.37,39.74]
[1756750097329,26.0,199.4,199.37,39.74]
[1756750097523,26.0,199.4,199.36,0.12]
[1756750097727,15.083336,199.43,199.34,0.12]
[1756750097728,65.7,199.41,199.34,0.12]
[1756750097930,26.0,199.38,199.34,0.12]
[1756750098244,26.0,199.37,199.32,0.12]
[1756750098741,26.0,199.35,199.32,0.12]
[1756750099042,26.0,199.35,199.3,0.12]
[1756750099043,26.0,199.31,199.3,0.12]
[1756750099528,26.0,199.31,199.3,1e-08]
[1756750101021,31.01730971,199.31,199.3,1e-08]
[1756750101824,31.01730971,199.31,199.3,0.71000001]
[1756750102541,5.01730971,199.31,199.3,0.71000001]
[1756750102718,31.01730971,199.31,199.3,0.71000001]
[1756750103144,5.01655463,199.34,199.3,0.71000001]
[1756750103551,31.01655463,199.34,199.3,0.71000001]
[1756750104543,31.01655463,199.34,199.3,1e-08]
[1756750104852,31.01655463,199.34,199.31,0.71]
[1756750104853,26.0,199.32,199.31,0.71]
[1756750105061,26.0,199.32,199.3,1e-08]
[1756750105251,31.01730971,199.31,199.3,1e-08]
[1756750106556,31.01730971,199.31,199.3,0.71000001]
[1756750107044,26.0,199.31,199.3,0.71000001]
[1756750107236,31.01730971,199.31,199.3,1e-08]
[1756750107427,5.01730971,199.31,199.3,1e-08]
[1756750107936,20.10823271,199.31,199.3,1e-08]
[1756750109135,46.10823271,199.31,199.3,1e-08]
[1756750109332,20.10823271,199.31,199.3,1e-08]
[1756750110441,46.10823271,199.31,199.3,1e-08]
[1756750110642,26.0,199.29,199.28,1e-08]
[1756750112429,35.11853282,199.29,199.28,1e-08]
[1756750113949,48.71412682,199.29,199.28,1e-08]
[1756750116854,35.11853282,199.29,199.28,1e-08]
[1756750117043,48.71412682,199.29,199.28,1e-08]
[1756750118435,44.61340723,199.29,199.28,0.70000001]
[1756750118633,44.64340723,199.29,199.28,0.70000001]
[1756750118971,70.66781323,199.29,199.28,1e-08]
[1756750119774,84.26340723,199.29,199.28,1e-08]
[1756750119974,88.42168235,199.29,199.26,1e-08]
[1756750120274,88.42168235,199.29,199.19,0.12]
[1756750120275,0.14216157,199.28,199.2,0.7]
[1756750120471,26.0,199.24,199.2,0.7]
[1756750120775,65.6,199.24,199.2,0.7]
[1756750121088,26.0,199.2,199.19,0.12]
[1756750122355,31.02008032,199.2,199.19,0.12]
[1756750122876,31.02008032,199.2,199.17,0.12]
[1756750123176,31.02008032,199.2,199.18,0.7]
[1756750123369,31.02008032,199.2,199.17,0.12]
[1756750123370,31.02008032,199.2,199.19,0.7]
[1756750123554,31.02008032,199.2,199.17,0.12]
[1756750124842,31.02008032,199.2,199.18,0.7]
[1756750125656,5.01989076,199.21,199.19,0.7]
[1756750125856,26.0,199.18,199.17,0.12]
[1756750126061,39.62,199.19,199.17,0.12]
[1756750126448,5.02058439,199.18,199.17,0.12]
[1756750128856,7.03412539,199.18,199.17,0.12]
[1756750129258,7.17628696,199.18,199.17,1e-08]
[1756750129473,7.17628696,199.18,199.15,0.12]
[1756750129474,26.0,199.16,199.15,0.12]
[1756750129678,65.6,199.16,199.15,0.12]
[1756750129974,65.74216157,199.16,199.15,0.12]
[1756750130481,65.6,199.16,199.15,0.12]
[1756750130792,70.76325014,199.16,199.15,0.12]
[1756750131254,72.77719714,199.16,199.15,0.12]
[1756750131455,72.63503557,199.16,199.15,0.12]
[1756750132174,33.03503557,199.16,199.15,0.12]
[1756750132390,72.63503557,199.16,199.15,0.12]
[1756750133186,33.03503557,199.16,199.15,0.12]
[1756750133417,72.63503557,199.16,199.15,0.12]
[1756750133586,67.613947,199.16,199.15,0.12]
[1756750133790,72.63503557,199.16,199.15,0.12]
[1756750135302,72.61503557,199.16,199.15,0.12]
[1756750135992,33.03503557,199.16,199.15,0.12]
[1756750136309,72.61503557,199.16,199.15,0.12]
[1756750136674,72.59503557,199.16,199.15,0.12]
[1756750138391,33.03503557,199.16,199.15,0.12]
[1756750138589,72.59503557,199.16,199.15,0.12]
[1756750138896,72.59503557,199.16,199.14,0.2]
[1756750139198,39.54,199.15,199.14,0.2]
[1756750140086,44.56134069,199.15,199.14,0.2]
[1756750141298,44.70350226,199.15,199.13,0.12]
[1756750141482,44.56134069,199.15,199.13,0.12]
[1756750143679,2.014048,199.14,199.13,0.12]
[1756750143892,41.534048,199.14,199.13,0.12]
[1756750144877,46.55564084,199.14,199.13,0.12]
[1756750145198,26.0,199.12,199.11,0.12]
[1756750145399,65.5,199.12,199.11,0.12]
[1756750145787,67.514048,199.12,199.11,0.12]
[1756750145988,67.514048,199.12,199.1,0.12]
[1756750147103,5.02234945,199.11,199.1,0.12]
[1756750147605,44.52234945,199.11,199.1,0.12]
[1756750148795,44.50234945,199.11,199.1,0.12]
[1756750149106,5.02234945,199.11,199.1,0.12]
[1756750149283,44.50234945,199.11,199.1,0.12]
[1756750152710,46.51659945,199.11,199.1,0.12]
[1756750153106,7.03659945,199.11,199.1,0.12]
[1756750153292,46.47659945,199.11,199.1,1e-08]
[1756750153488,46.53659945,199.11,199.1,1e-08]
[1756750154509,7.03659945,199.11,199.1,1e-08]
[1756750154808,46.53659945,199.11,199.1,1e-08]
[1756750155010,7.03659945,199.11,199.1,1e-08]
[1756750155213,12.55214442,199.17,199.1,0.68000001]
[1756750155396,0.03,199.15,199.1,0.68000001]
[1756750155597,41.553846,199.14,199.1,0.68000001]
[1756750155811,26.0,199.11,199.1,0.68000001]
[1756750159408,70.54234945,199.11,199.1,1e-08]
[1756750159720,72.55649845,199.11,199.1,1e-08]
[1756750160617,72.55649845,199.11,199.1,0.68000001]
[1756750160993,33.03649845,199.11,199.1,0.68000001]
[1756750161198,72.55649845,199.11,199.1,0.68000001]
[1756750161923,70.54234945,199.11,199.1,0.68000001]
[1756750162836,70.52234945,199.11,199.1,0.68000001]
[1756750167114,70.50234945,199.11,199.1,0.68000001]
[1756750167431,31.02234945,199.11,199.1,0.68000001]
[1756750167648,70.48234945,199.11,199.1,0.68000001]
[1756750168138,44.46159284,199.14,199.1,0.68000001]
[1756750168515,70.46159284,199.14,199.1,0.68000001]
[1756750168712,44.46159284,199.14,199.1,1e-08]
[1756750168933,0.65,199.13,199.1,1e-08]
[1756750169128,5.02234945,199.11,199.1,1e-08]
[1756750169824,7.03649845,199.11,199.1,1e-08]
[1756750170025,7.68649845,199.11,199.1,1e-08]
[1756750170817,26.0,199.09,199.06,1e-08]
[1756750171017,39.44,199.08,199.06,1e-08]
[1756750171326,44.48335861,199.07,199.06,1e-08]
[1756750171632,47.14801561,199.07,199.06,1e-08]
[1756750172138,47.14801561,199.07,199.0,0.68]
[1756750172139,26.0,199.05,199.0,0.68]
[1756750172316,39.46,199.05,198.97,0.68]
[1756750172521,26.0,199.02,198.95,0.68]
[1756750172721,26.0,198.98,198.95,0.68]
[1756750172921,39.48,198.97,198.94,0.2]
[1756750173138,5.0261359,198.96,198.95,0.68]
[1756750173357,9.070935,198.96,198.94,0.2]
[1756750174065,5.0261359,198.96,198.95,0.68]
[1756750178551,5.0261359,198.96,198.94,0.2]
[1756750178770,5.0261359,198.96,198.94,0.87]
[1756750179640,39.46,198.95,198.94,0.2]
[1756750180340,44.48638853,198.95,198.94,0.2]
[1756750181067,45.15638853,198.95,198.94,0.2]
[1756750181434,58.75198253,198.95,198.94,0.2]
[1756750181950,26.0,198.92,198.87,0.67]
[1756750182170,26.0,198.88,198.87,0.67]
[1756750182349,31.02833773,198.88,198.8,18.62575379]
[1756750182550,31.02833773,198.88,198.8,22.87214815]
[1756750183057,31.02833773,198.88,198.82,13.59559401]
[1756750183235,31.02833773,198.88,198.83,0.67]
[1756750183438,26.0,198.84,198.83,0.67]
[1756750184160,26.0,198.84,198.81,0.67]
[1756750184365,5.02942211,198.83,198.82,0.67]
[1756750184557,31.02918635,198.84,198.83,0.67]
[1756750185150,31.02918635,198.84,198.76,13.59559401]
[1756750185358,31.02918635,198.84,198.75,5.03142016]
[1756750185359,31.02918635,198.84,198.79,13.59559401]
[1756750185569,31.02918635,198.84,198.8,0.67]
[1756750185737,31.02918635,198.84,198.76,13.73775558]
[1756750185938,31.02918635,198.84,198.77,0.67]
[1756750186876,15.123635,198.88,198.78,4.38855593]
[1756750187037,39.46,198.91,198.81,4.24639436]
[1756750187368,26.0,198.87,198.8,0.67]
[1756750187547,26.0,198.83,198.78,13.59559401]
[1756750187754,65.86,198.83,198.78,0.67]
[1756750187952,26.0,198.83,198.78,0.67]
[1756750188163,26.0,198.8,198.73,0.14216157]
[1756750188473,26.0,198.8,198.78,0.67]
[1756750188678,26.0,198.81,198.79,0.67]
[1756750188843,26.0,198.81,198.75,0.14216157]
[1756750188844,26.0,198.81,198.8,0.67]
[1756750189454,5.02916918,198.84,198.8,0.67]
[1756750189747,5.02916918,198.84,198.81,0.67]
[1756750189748,26.0,198.82,198.81,0.67]
[1756750190052,0.14216157,198.91,198.81,0.67]
[1756750190053,44.94885235,198.86,198.81,0.67]
[1756750190376,31.02885235,198.86,198.81,0.67]
[1756750191983,26.0,198.86,198.83,13.59559401]
[1756750192153,26.0,198.86,198.84,0.67]
[1756750192548,26.0,198.86,198.85,0.67]
[1756750194876,31.02866338,198.86,198.8,0.14216157]
[1756750195082,31.02866338,198.86,198.82,0.67]
[1756750195285,31.02866338,198.86,198.83,0.67]
[1756750195482,26.0,198.86,198.84,0.67]
[1756750195674,26.0,198.86,198.85,0.67]
[1756750197775,26.0,198.86,198.82,13.59559401]
[1756750198076,26.0,198.86,198.83,0.67]
[1756750198375,26.0,198.86,198.84,0.67]
[1756750199343,13.595594,198.91,198.85,0.67]
[1756750199583,13.595594,198.91,198.86,13.59559401]
[1756750199874,59.52,198.93,198.87,0.67]
[1756750200077,26.0,198.93,198.87,0.67]
[1756750200288,39.9,198.94,198.88,13.59559401]
[1756750200456,5.02638853,198.95,198.89,0.67]
[1756750200779,5.0261359,198.96,198.89,0.67]
[1756750200974,31.0261359,198.96,198.9,13.59559401]
[1756750201159,31.0261359,198.96,198.91,0.67]
[1756750201477,31.0261359,198.96,198.92,0.67]
[1756750202066,5.0261359,198.96,198.92,0.67]
[1756750202383,5.02588466,198.97,198.93,0.67]
[1756750202546,5.12618655,199.02,198.94,13.59559401]
[1756750202547,4.05146352,199.01,198.94,13.59559401]
[1756750202748,5.02512562,199.0,198.95,0.67]
[1756750202968,31.02512562,199.0,198.96,0.67]
[1756750203553,0.67,198.99,198.91,13.59559401]
[1756750203754,0.67,198.99,198.85,12.57220999]
[1756750203755,26.0,198.97,198.8,95.38]
[1756750203954,26.67,198.96,198.84,13.59559401]
[1756750204180,26.67,198.96,198.87,0.14216157]
[1756750204181,0.67,198.95,198.87,0.14216157]
[1756750204374,0.67,198.95,198.89,13.59559401]
[1756750204779,5.02664119,198.94,198.89,13.59559401]
[1756750205079,5.02664119,198.94,198.85,18.7666631]
[1756750205252,5.02664119,198.94,198.86,0.72]
[1756750206063,5.02664119,198.94,198.87,0.14216157]
[1756750206473,5.02664119,198.94,198.89,13.59559401]
[1756750206650,5.68664119,198.94,198.89,13.59559401]
[1756750206850,5.68664119,198.94,198.89,14.31559401]
[1756750208184,0.66,198.93,198.87,0.14216157]
[1756750208384,26.0,198.91,198.87,0.72]
[1756750208589,26.0,198.91,198.75,0.12]
[1756750208590,0.66,198.9,198.85,13.59559401]
[1756750208759,17.59324418,198.94,198.79,129.39675925]
[1756750208760,26.66,198.89,198.83,13.59559401]
[1756750209368,26.0,198.88,198.83,0.72]
[1756750209576,26.0,198.88,198.84,0.72]
[1756750209759,26.0,198.88,198.85,0.72]
[1756750210095,26.0,198.89,198.86,0.72]
[1756750210277,5.02815768,198.88,198.87,0.12]
[1756750213771,5.68815768,198.88,198.87,0.12]
[1756750214167,5.02815768,198.88,198.87,0.12]
[1756750214993,5.02746536,198.91,198.87,0.84]
[1756750215176,5.02746536,198.91,198.88,0.72]
[1756750216773,31.02716912,198.92,198.89,0.72]
[1756750218585,31.02716912,198.92,198.87,0.84]
[1756750218896,31.02716912,198.92,198.88,0.72]
[1756750219200,31.02716912,198.92,198.89,0.72]
[1756750219694,26.0,198.92,198.87,0.12]
[1756750219915,13.22439277,198.98,198.9,0.72]
[1756750220072,39.7,198.97,198.9,0.72]
[1756750220275,66.63998677,198.98,198.9,0.72]
[1756750220581,26.0,198.94,198.9,0.72]
[1756750220779,5.02588329,198.97,198.9,0.72]
[1756750220996,31.02588329,198.97,198.9,0.72]
[1756750221176,5.02588329,198.97,198.9,0.72]
[1756750221379,26.0,198.95,198.9,0.72]
[1756750221590,26.0,198.96,198.91,13.59559401]
[1756750221793,26.0,198.96,198.92,0.72]
[1756750221995,26.0,198.96,198.91,13.59559401]
[1756750221996,26.0,198.96,198.93,0.72]
[1756750222790,31.02628307,198.96,198.93,0.72]
[1756750223702,26.0,198.97,198.94,0.72]
[1756750223881,0.03,199.0,198.95,13.59559401]
[1756750224082,0.03,199.0,198.96,0.72]
[1756750224286,0.69,199.0,198.95,0.72]
[1756750224482,5.05513363,199.0,198.96,0.72]
[1756750225407,5.71513363,199.0,198.95,13.59559401]
[1756750225609,5.71513363,199.0,198.95,14.31559401]
[1756750225908,5.05513363,199.0,198.96,0.72]
[1756750226094,5.05513363,199.0,198.93,17.84198837]
[1756750226295,0.03,199.0,198.97,0.72]
[1756750226693,0.03,199.0,198.98,0.72]
[1756750226900,0.03,199.0,198.99,13.59559401]
[1756750228311,0.03,199.0,198.99,0.72]
[1756750230520,0.03,199.0,198.99,19.48313373]
[1756750230699,0.03,199.0,198.99,13.59559401]
[1756750231317,0.03,199.0,198.99,14.31559401]
[1756750232589,0.03,199.0,198.99,13.59559401]
[1756750233787,0.03,199.0,198.99,14.31559401]
[1756750234508,0.03,199.0,198.99,23.72952809]
[1756750239516,0.03,199.0,198.99,104.02952809]
[1756750240102,0.03,199.0,198.99,23.72952809]
[1756750241490,0.03,199.0,198.99,27.97592245]
[1756750241920,0.03,199.0,198.99,28.47846026]
[1756750242598,0.03,199.0,198.99,63.7720659]
[1756750242804,0.03,199.0,198.99,24.2320659]
[1756750243012,0.03,199.0,198.99,63.7720659]
[1756750244096,0.03,199.0,198.99,19.98567154]
[1756750244301,0.03,199.0,198.99,63.10736652]
[1756750244504,0.03,199.0,198.99,23.58736652]
[1756750244805,0.03,199.0,198.99,63.10736652]
[1756750245000,0.03,199.0,198.99,63.24952809]
[1756750245397,0.03,199.0,198.99,104.02952809]
[1756750245596,0.03,199.0,198.99,143.54952809]
[1756750245821,0.03,199.0,198.99,13.73775558]
[1756750246004,0.03,199.0,198.99,53.09559401]
[1756750247125,0.03,199.0,198.99,53.23775558]
[1756750247622,0.03,199.0,198.99,13.73775558]
[1756750247838,0.72,199.0,198.99,13.59559401]
[1756750248005,0.72,199.0,198.99,53.07559401]
[1756750248199,0.03,199.0,198.99,53.07559401]
[1756750248924,0.03,199.0,198.99,53.89775558]